bitfinex/quotes_BTCUSD_20240828
["timestamp","ask_amount","ask_price","bid_price","bid_amount"]
[1724854541710,0.173978,59888.0,59883.0,0.008998]
[1724854541972,1.61277732,59888.0,59883.0,0.008998]
[1724854542219,2.23828496,59888.0,59883.0,0.008998]
[1724854542501,2.90619696,59888.0,59883.0,0.008998]
[1724854542762,2.57224096,59888.0,59883.0,0.008998]
[1724854544035,1.625802,59888.0,59883.0,0.008998]
[1724854544271,0.600934,59888.0,59883.0,0.008998]
[1724854544503,0.01,59888.0,59887.0,0.08632]
[1724854544736,0.01,59888.0,59887.0,0.26772917]
[1724854545029,0.014,59902.0,59901.0,0.244242]
[1724854545275,0.014,59902.0,59901.0,0.98511]
[1724854545518,0.014,59902.0,59901.0,0.66563102]
[1724854545936,0.014,59902.0,59901.0,0.33174702]
[1724854546158,0.04995,59910.0,59909.0,0.166919]
[1724854546400,0.04995,59910.0,59909.0,0.1504]
[1724854546615,0.04995,59910.0,59909.0,0.14776393]
[1724854546819,0.550701,59910.0,59909.0,0.14776393]
[1724854547027,0.884535,59910.0,59909.0,0.14776393]
[1724854547251,0.884535,59910.0,59909.0,0.13378]
[1724854547252,0.550701,59910.0,59909.0,0.13378]
[1724854547457,0.216867,59910.0,59909.0,0.13378]
[1724854547685,0.550701,59910.0,59909.0,0.1472629]
[1724854547908,0.550701,59910.0,59909.0,0.11978]
[1724854548127,0.551701,59910.0,59909.0,0.11978]
[1724854548343,0.885535,59910.0,59909.0,0.11978]
[1724854548563,0.886535,59910.0,59909.0,0.12878]
[1724854548771,1.220369,59910.0,59909.0,0.12878]
[1724854548982,0.91270691,59910.0,59909.0,0.12878]
[1724854549400,0.98751272,59910.0,59909.0,0.009]
[1724854549629,0.83475,59898.0,59897.0,0.0634]
[1724854549841,1.16865,59898.0,59897.0,0.0634]
[1724854550049,0.83475,59898.0,59897.0,0.0634]
[1724854550286,0.166938,59903.0,59897.0,0.0634]
[1724854550504,0.02617676,59898.0,59897.0,0.564259]
[1724854550717,0.166948,59899.0,59897.0,0.0634]
[1724854550952,0.16695,59898.0,59897.0,0.0634]
[1724854551385,0.16695,59898.0,59897.0,0.1414]
[1724854551820,0.166946,59900.0,59897.0,0.1414]
[1724854552027,0.16695,59898.0,59897.0,0.1464]
[1724854552256,0.16695,59898.0,59897.0,0.1414]
[1724854552477,0.83475,59898.0,59897.0,0.1474]
[1724854552928,1.16865,59898.0,59897.0,0.084]
[1724854553131,1.29265,59898.0,59897.0,0.092]
[1724854553334,0.96192755,59898.0,59897.0,0.092]
[1724854553540,0.96092755,59898.0,59897.0,0.078]
[1724854553956,0.96092755,59898.0,59897.0,0.083]
[1724854554176,1.29482755,59898.0,59897.0,0.005]
[1724854554387,1.29482755,59898.0,59891.0,0.0656]
[1724854554388,0.500901,59892.0,59891.0,0.0656]
[1724854554848,0.834835,59892.0,59891.0,0.0790829]
[1724854555276,0.166967,59892.0,59891.0,0.0656]
[1724854555554,0.166962,59894.0,59891.0,0.1432]
[1724854555824,0.16696,59895.0,59891.0,0.1432]
[1724854556094,0.46007755,59898.0,59897.0,0.500859]
[1724854556095,0.02617755,59898.0,59897.0,0.500859]
[1724854556355,0.02617755,59898.0,59897.0,0.645659]
[1724854556604,0.02617755,59898.0,59897.0,0.9930479]
[1724854556866,0.02617755,59898.0,59897.0,0.1582829]
[1724854556867,0.19312755,59898.0,59897.0,0.1582829]
[1724854557077,0.52702755,59898.0,59897.0,0.1582829]
[1724854557290,0.52702755,59898.0,59897.0,0.1662829]
[1724854557503,0.86092755,59898.0,59897.0,0.1528]
[1724854557715,0.86092755,59898.0,59897.0,0.16644029]
[1724854557923,0.86092755,59898.0,59897.0,0.1528]
[1724854558140,0.86092755,59898.0,59897.0,0.1658]
[1724854558141,0.52802755,59898.0,59897.0,0.1658]
[1724854558372,0.19412755,59898.0,59897.0,0.17944029]
[1724854558585,0.19412755,59898.0,59897.0,0.03564029]
[1724854558586,0.86192755,59898.0,59897.0,0.03564029]
[1724854558813,1.31882755,59898.0,59897.0,0.03564029]
[1724854559022,1.31882755,59898.0,59897.0,0.013]
[1724854559229,1.65272755,59898.0,59897.0,0.013]
[1724854559448,1.82127919,59898.0,59897.0,0.027]
[1724854559896,1.168769,59892.0,59891.0,0.0009009]
[1724854560107,1.191769,59892.0,59891.0,0.0009009]
[1724854560727,1.23537028,59892.0,59891.0,0.0009009]
[1724854560945,1.70472281,59892.0,59891.0,0.0009009]
[1724854561164,1.84422281,59892.0,59891.0,0.0009009]
[1724854561371,1.84422281,59892.0,59891.0,0.0039009]
[1724854561827,1.33537028,59892.0,59891.0,0.0039009]
[1724854562323,0.64450228,59892.0,59891.0,0.0039009]
[1724854562604,0.96101545,59892.0,59891.0,0.0039009]
[1724854562827,1.29494945,59892.0,59891.0,0.0039009]
[1724854563069,1.29494945,59892.0,59891.0,0.0009009]
[1724854563298,0.96801545,59892.0,59891.0,0.0049009]
[1724854563536,0.62708145,59892.0,59891.0,0.0039009]
[1724854563743,1.4251424,59892.0,59891.0,0.0009009]
[1724854563953,0.96101545,59892.0,59891.0,0.0009009]
[1724854564178,0.96101545,59892.0,59891.0,0.0059009]
[1724854564613,0.96101545,59892.0,59891.0,0.0009009]
[1724854565463,0.96101545,59892.0,59891.0,0.0059009]
[1724854565693,0.62708145,59892.0,59891.0,0.0059009]
[1724854566123,1.29494945,59892.0,59891.0,0.0059009]
[1724854566373,1.3576576,59892.0,59891.0,0.0059009]
[1724854566603,2.05383287,59892.0,59891.0,0.0059009]
[1724854566826,2.14113287,59892.0,59891.0,0.0009009]
[1724854567034,1.31794945,59892.0,59891.0,0.0009009]
[1724854567255,0.96101545,59892.0,59891.0,0.0059009]
[1724854567467,0.62708145,59892.0,59891.0,0.0059009]
[1724854567674,0.02618045,59892.0,59891.0,0.1678699]
[1724854567873,0.02618045,59892.0,59891.0,0.09153158]
[1724854567874,0.19314745,59892.0,59891.0,0.09153158]
[1724854568075,0.03218045,59892.0,59891.0,0.42647058]
[1724854568278,0.03218045,59892.0,59891.0,0.59343958]
[1724854568492,0.04995,59895.0,59892.0,0.333934]
[1724854568698,0.04995,59895.0,59893.0,0.248862]
[1724854568901,0.04995,59895.0,59894.0,0.582784]
[1724854569102,0.04995,59895.0,59894.0,0.248861]
[1724854569514,0.04995,59895.0,59894.0,0.26293458]
[1724854569716,0.550825,59895.0,59894.0,0.09597358]
[1724854569918,0.551825,59895.0,59894.0,0.0819]
[1724854570119,0.2430844,59895.0,59894.0,0.0819]
[1724854570332,0.5770014,59895.0,59894.0,0.09591598]
[1724854570535,0.0771264,59895.0,59894.0,0.09591598]
[1724854570737,0.0781264,59895.0,59894.0,0.10791598]
[1724854570943,0.2440844,59895.0,59894.0,0.10791598]
[1724854571149,0.5780014,59895.0,59894.0,0.10791598]
[1724854571352,0.9129184,59895.0,59894.0,0.1079]
[1724854571557,1.2468354,59895.0,59894.0,0.1079]
[1724854571760,1.03760004,59895.0,59894.0,0.1079]
[1724854571959,0.5790014,59895.0,59894.0,0.1079]
[1724854572190,0.5790014,59895.0,59894.0,0.12191598]
[1724854572390,0.0781264,59895.0,59894.0,0.12191598]
[1724854572594,0.2450844,59895.0,59894.0,0.12191598]
[1724854572798,0.7459604,59895.0,59894.0,0.12191598]
[1724854573017,1.0129184,59895.0,59894.0,0.04001598]
[1724854573219,1.39525504,59895.0,59894.0,0.04001598]
[1724854573410,0.986742,59895.0,59894.0,0.026]
[1724854574456,0.05195,59895.0,59894.0,0.026]
[1724854574656,0.05195,59895.0,59894.0,1.001507]
[1724854574865,0.05195,59895.0,59894.0,1.01552298]
[1724854575042,0.07812552,59895.0,59894.0,1.01552298]
[1724854575278,0.07812552,59895.0,59894.0,1.34944598]
[1724854575815,0.07792,59932.0,59902.0,0.00199999]
[1724854576076,0.00082,59932.0,59917.0,0.977487]
[1724854576284,0.00082,59932.0,59917.0,1.311282]
[1724854576610,0.02616664,59925.0,59917.0,1.32529798]
[1724854576827,0.333732,59929.0,59917.0,0.65770798]
[1724854577136,0.00082,59932.0,59917.0,0.99150298]
[1724854577350,0.001819,59918.0,59917.0,1.00550298]
[1724854577565,0.002819,59918.0,59917.0,1.35529797]
[1724854577830,0.00082,59932.0,59931.0,1.313509]
[1724854578239,0.00082,59932.0,59931.0,0.15888586]
[1724854578441,0.501386,59932.0,59931.0,0.15888586]
[1724854578691,0.835097,59932.0,59931.0,0.09348586]
[1724854578896,0.00082,59932.0,59931.0,0.0801]
[1724854579103,0.02698151,59932.0,59931.0,0.0801]
[1724854579305,0.02698151,59932.0,59931.0,0.0929874]
[1724854579654,0.52754751,59932.0,59931.0,0.0929874]
[1724854580084,0.52754751,59932.0,59931.0,0.0871]
[1724854580547,0.500616,59926.0,59925.0,0.1392]
[1724854580769,0.36069251,59932.0,59908.0,0.50540786]
[1724854580770,0.52754751,59932.0,59931.0,0.013]
[1724854580986,1.625519,59932.0,59931.0,0.013]
[1724854581203,0.166905,59914.0,59913.0,0.0759]
[1724854581637,0.500716,59914.0,59913.0,0.08885646]
[1724854581846,0.834527,59914.0,59913.0,0.08885646]
[1724854582029,0.500716,59914.0,59913.0,0.0759]
[1724854582273,0.333756,59924.0,59917.0,0.166896]
[1724854582458,0.333811,59914.0,59913.0,0.0759]
[1724854582630,0.834527,59914.0,59913.0,0.08892602]
[1724854583037,0.834527,59914.0,59913.0,0.0839]
[1724854583038,0.500716,59914.0,59913.0,0.0839]
[1724854583358,0.834527,59914.0,59913.0,0.0759]
[1724854583582,0.1,59929.0,59903.0,0.148]
[1724854583583,0.078,59922.0,59903.0,0.148]
[1724854583792,0.078,59922.0,59917.0,0.006]
[1724854583793,0.834472,59918.0,59917.0,0.006]
[1724854583991,0.834472,59918.0,59903.0,0.148]
[1724854583992,0.500716,59914.0,59913.0,0.011]
[1724854584213,1.28801263,59914.0,59913.0,0.011]
[1724854584414,1.74482363,59914.0,59913.0,0.008]
[1724854584573,1.82292363,59914.0,59913.0,0.008]
[1724854584771,1.703249,59914.0,59913.0,0.019]
[1724854585091,1.369438,59914.0,59913.0,0.019]
[1724854585299,1.369438,59914.0,59913.0,0.008]
[1724854585512,1.703249,59914.0,59913.0,0.008]
[1724854585728,1.369438,59914.0,59913.0,0.008]
[1724854586164,0.83464,59906.0,59905.0,0.4782]
[1724854586368,0.83464,59906.0,59905.0,0.49132845]
[1724854586795,0.123,59914.0,59906.0,0.0776]
[1724854586796,0.1,59914.0,59906.0,0.0776]
[1724854586997,0.166925,59907.0,59906.0,0.0776]
[1724854587408,0.02617353,59908.0,59906.0,0.09072845]
[1724854587628,0.02617353,59908.0,59907.0,0.500775]
[1724854587847,0.02617353,59908.0,59906.0,0.09072845]
[1724854588056,0.500775,59907.0,59906.0,0.0806]
[1724854588277,0.92070365,59907.0,59906.0,0.003]
[1724854588486,0.500784,59906.0,59905.0,0.008]
[1724854588659,1.168496,59906.0,59905.0,0.008]
[1724854589232,0.834722,59900.0,59899.0,0.0817]
[1724854589861,0.50085,59898.0,59897.0,0.0648]
[1724854590072,0.50085,59898.0,59889.0,0.4782]
[1724854590073,0.500901,59892.0,59889.0,0.4782]
[1724854590271,0.834835,59892.0,59889.0,0.4782]
[1724854590491,1.168769,59892.0,59889.0,0.4782]
[1724854590748,1.191769,59892.0,59887.0,0.00902]
[1724854590956,1.291769,59892.0,59887.0,0.00902]
[1724854591586,1.291769,59892.0,59891.0,0.0149009]
[1724854592017,1.291769,59892.0,59891.0,0.0009009]
[1724854592665,1.291769,59892.0,59891.0,0.0049009]
[1724854593175,1.291769,59892.0,59891.0,0.0009009]
[1724854593622,1.33848495,59892.0,59891.0,0.0009009]
[1724854594093,1.31130385,59892.0,59891.0,0.0009009]
[1724854594268,0.101,59892.0,59891.0,0.0009009]
[1724854594638,0.835835,59892.0,59891.0,0.0766009]
[1724854594874,0.834835,59892.0,59891.0,0.0766009]
[1724854595328,1.169769,59892.0,59891.0,0.0009009]
[1724854595575,1.269769,59892.0,59891.0,0.0009009]
[1724854596021,0.935835,59892.0,59891.0,0.0009009]
[1724854596270,0.167967,59892.0,59891.0,0.0009009]
[1724854596529,0.02617969,59893.0,59891.0,0.0766009]
[1724854596940,0.02617969,59893.0,59892.0,0.166967]
[1724854597193,0.166953,59897.0,59893.0,0.166961]
[1724854597442,0.333881,59902.0,59896.0,0.166955]
[1724854597443,0.166945,59900.0,59896.0,0.166955]
[1724854597689,0.04979715,59907.0,59900.0,0.166944]
[1724854597943,0.04979715,59912.0,59901.0,0.1403]
[1724854598192,0.166939,59902.0,59901.0,0.1403]
[1724854598689,0.500817,59902.0,59901.0,0.1403]
[1724854599171,0.166926,59907.0,59903.0,0.166935]
[1724854599405,0.333826,59912.0,59903.0,0.0807]
[1724854599406,0.333824,59912.0,59903.0,0.0807]
[1724854599678,0.16692,59909.0,59905.0,0.166929]
[1724854599920,0.834667,59904.0,59903.0,0.0807]
[1724854600184,0.02617207,59907.0,59903.0,0.0807]
[1724854600427,0.166933,59904.0,59903.0,0.0807]
[1724854601082,0.834667,59904.0,59903.0,0.0807]
[1724854601284,0.166933,59904.0,59903.0,0.0807]
[1724854601487,0.166933,59904.0,59903.0,0.0837]
[1724854601709,0.02617207,59907.0,59903.0,0.0837]
[1724854601919,0.02617207,59907.0,59906.0,0.580384]
[1724854602123,0.02617207,59907.0,59906.0,0.97494]
[1724854602332,0.04979715,59925.0,59906.0,0.474156]
[1724854602544,0.43332931,59928.0,59924.0,0.1475]
[1724854602545,0.166868,59928.0,59924.0,0.1475]
[1724854602754,0.05061715,59932.0,59924.0,0.1475]
[1724854602755,0.166875,59925.0,59924.0,0.1475]
[1724854602958,0.333717,59931.0,59924.0,0.1475]
[1724854602959,0.02616679,59926.0,59924.0,0.1475]
[1724854603178,0.166872,59926.0,59924.0,0.1475]
[1724854603386,0.333717,59931.0,59924.0,0.1475]
[1724854603387,0.166863,59930.0,59924.0,0.1475]
[1724854603607,0.02616399,59930.0,59929.0,0.500592]
[1724854603819,0.02616399,59930.0,59929.0,0.0816]
[1724854604047,0.02616399,59930.0,59929.0,0.582192]
[1724854604297,0.02616399,59930.0,59929.0,0.0816]
[1724854605364,0.02616399,59930.0,59929.0,0.0956]
[1724854605585,0.19302499,59930.0,59929.0,0.0816]
[1724854605794,0.02616399,59930.0,59929.0,0.0816]
[1724854606011,0.52674699,59930.0,59929.0,0.0926]
[1724854606231,0.52674699,59930.0,59929.0,0.011]
[1724854606639,0.166873,59926.0,59924.0,0.0659]
[1724854607152,0.02616399,59930.0,59923.0,0.0826]
[1724854607153,0.33375,59925.0,59923.0,0.0826]
[1724854607355,0.02616399,59930.0,59918.0,0.143]
[1724854607356,0.500674,59919.0,59918.0,0.143]
[1724854607555,0.834457,59919.0,59918.0,0.143]
[1724854608250,0.86062277,59919.0,59918.0,0.143]
[1724854608445,0.19305677,59919.0,59918.0,0.143]
[1724854608649,1.19440577,59919.0,59918.0,0.0826]
[1724854608847,0.86062277,59919.0,59918.0,0.014]
[1724854609200,0.52683977,59919.0,59918.0,0.014]
[1724854609621,0.52683977,59919.0,59918.0,0.028]
[1724854610049,0.52683977,59919.0,59918.0,0.014]
[1724854610228,0.1669,59916.0,59915.0,0.0796]
[1724854610846,0.02616577,59919.0,59916.0,0.166898]
[1724854611043,0.02616577,59919.0,59918.0,0.007]
[1724854611318,0.02616577,59919.0,59918.0,0.59232073]
[1724854611452,0.02616577,59919.0,59918.0,1.26189872]
[1724854611648,0.02616577,59919.0,59918.0,1.32449873]
[1724854611852,0.000819,59919.0,59918.0,1.32449873]
[1724854612832,0.000819,59919.0,59918.0,1.32793387]
[1724854613279,0.000819,59919.0,59918.0,0.99080714]
[1724854613485,0.000819,59919.0,59918.0,0.67101814]
[1724854613896,0.000819,59919.0,59918.0,0.99080714]
[1724854614116,0.000819,59919.0,59918.0,1.00480714]
[1724854614319,0.000819,59919.0,59918.0,1.01880714]
[1724854614520,0.000819,59919.0,59918.0,1.00480714]
[1724854614728,0.000819,59919.0,59918.0,0.33722914]
[1724854614935,0.000819,59919.0,59918.0,0.68501814]
[1724854615145,0.000819,59919.0,59918.0,0.67101814]
[1724854615883,0.000819,59919.0,59918.0,1.00480714]
[1724854616505,0.000819,59919.0,59918.0,1.35259614]
[1724854616731,0.000819,59919.0,59918.0,1.01880714]
[1724854617353,0.000819,59919.0,59918.0,0.99080714]
[1724854617571,0.000819,59919.0,59918.0,1.00480714]
[1724854617779,0.000819,59919.0,59918.0,0.35122914]
[1724854618008,0.000819,59919.0,59918.0,0.17033514]
[1724854618232,0.16771,59919.0,59918.0,0.15633514]
[1724854618439,0.000819,59919.0,59918.0,0.17033514]
[1724854618658,0.000819,59919.0,59918.0,0.68501814]
[1724854618876,0.000819,59919.0,59918.0,0.35122914]
[1724854619099,0.000819,59919.0,59918.0,0.18433514]
[1724854619338,0.334602,59919.0,59918.0,0.18433514]
[1724854619599,0.501493,59919.0,59918.0,0.04143514]
[1724854620078,0.000819,59919.0,59918.0,0.04143514]
[1724854620299,0.501493,59919.0,59918.0,0.02743514]
[1724854620545,0.835276,59919.0,59918.0,0.02743514]
[1724854620793,0.835276,59919.0,59918.0,0.01343514]
[1724854621055,0.835276,59919.0,59918.0,0.04143514]
[1724854621056,1.28857932,59919.0,59918.0,0.04143514]
[1724854621286,1.351259,59919.0,59918.0,0.028]
[1724854621803,0.935276,59919.0,59918.0,0.014]
[1724854622035,0.835276,59919.0,59918.0,0.014]
[1724854622531,0.835276,59919.0,59918.0,0.514683]
[1724854622532,0.000819,59919.0,59918.0,0.514683]
[1724854622807,0.000819,59919.0,59918.0,0.911272]
[1724854623026,0.000819,59919.0,59918.0,1.00185132]
[1724854623756,0.000819,59919.0,59918.0,1.00485132]
[1724854624020,0.000819,59919.0,59918.0,0.67106232]
[1724854624250,0.000819,59919.0,59918.0,0.65406232]
[1724854624506,0.000819,59919.0,59918.0,0.16337932]
[1724854624967,0.000819,59919.0,59918.0,0.33027332]
[1724854625185,0.000819,59919.0,59918.0,1.33587862]
[1724854625422,0.000819,59919.0,59918.0,1.33254122]
[1724854625671,0.000819,59919.0,59918.0,0.99875222]
[1724854625965,0.000819,59919.0,59918.0,0.33517422]
[1724854626196,0.000819,59919.0,59918.0,0.26237422]
[1724854626420,0.000819,59919.0,59918.0,0.25837422]
[1724854626681,0.000819,59919.0,59918.0,0.28637422]
[1724854626934,0.000819,59919.0,59918.0,0.27237422]
[1724854627167,0.000819,59919.0,59918.0,0.60616322]
[1724854627453,0.000819,59919.0,59918.0,1.27374122]
[1724854627704,0.000819,59919.0,59918.0,0.27237422]
[1724854627914,0.000819,59919.0,59918.0,0.62350061]
[1724854628167,0.000819,59919.0,59918.0,0.94328961]
[1724854628410,0.000819,59919.0,59918.0,0.60950061]
[1724854628840,0.000819,59919.0,59918.0,0.59550061]
[1724854629344,0.000819,59919.0,59918.0,0.92928961]
[1724854629563,0.000819,59919.0,59918.0,1.27707861]
[1724854629813,0.000819,59919.0,59918.0,1.33897861]
[1724854630039,0.000819,59919.0,59918.0,2.30401738]
[1724854630254,1e-08,59919.0,59918.0,1.99490618]
[1724854630510,1e-08,59919.0,59918.0,2.30469518]
[1724854630775,1e-08,59919.0,59918.0,2.33469517]
[1724854631078,1e-08,59919.0,59918.0,2.34469517]
[1724854631182,1e-08,59919.0,59918.0,2.34674427]
[1724854631460,0.00082,59932.0,59929.0,1.584876]
[1724854631687,0.00082,59936.0,59929.0,1.584876]
[1724854631688,0.00082,59936.0,59935.0,1.67564241]
[1724854631911,0.00082,59936.0,59935.0,1.64972299]
[1724854632411,0.00082,59936.0,59935.0,1.66279219]
[1724854632678,0.00082,59936.0,59935.0,1.6607922]
[1724854632907,0.00082,59936.0,59935.0,1.3270982]
[1724854633141,0.00082,59936.0,59935.0,1.3410982]
[1724854633645,0.00082,59936.0,59935.0,1.6747922]
[1724854633899,0.01742083,59968.0,59945.0,1.1977104]
[1724854633900,0.02615446,59946.0,59945.0,1.1977104]
[1724854634159,0.01742083,59968.0,59945.0,1.1977104]
[1724854634160,0.52282869,59968.0,59956.0,0.643265]
[1724854634384,0.166761,59966.0,59956.0,0.976842]
[1724854634609,0.334323,59970.0,59956.0,0.9899112]
[1724854634896,0.166764,59965.0,59956.0,0.6563342]
[1724854635127,0.334323,59970.0,59956.0,0.9899112]
[1724854635584,0.02614976,59960.0,59956.0,0.9899112]
[1724854636039,0.02614976,59960.0,59956.0,0.6563342]
[1724854636260,0.02614976,59960.0,59956.0,0.9899112]
[1724854636483,0.00082,59970.0,59969.0,0.833762]
[1724854636696,0.00082,59970.0,59969.0,1.167267]
[1724854636906,0.00082,59970.0,59969.0,1.17982503]
[1724854637128,0.00082,59970.0,59969.0,0.92912003]
[1724854637556,0.00082,59970.0,59969.0,1.26262503]
[1724854637977,0.00082,59970.0,59969.0,1.27662503]
[1724854638191,0.00082,59970.0,59969.0,0.94312003]
[1724854639304,0.00082,59970.0,59969.0,0.60961503]
[1724854639518,0.00082,59970.0,59969.0,0.94312003]
[1724854639768,0.00082,59970.0,59969.0,0.95712003]
[1724854640002,0.00082,59970.0,59969.0,3.2160908]
[1724854640218,0.00821,59978.0,59977.0,1.67622641]
[1724854640441,0.0061575,59979.0,59978.0,0.92043699]
[1724854640661,0.00819,59990.0,59989.0,0.642591]
[1724854640883,0.00819,59990.0,59989.0,0.975985]
[1724854641110,0.00819,59990.0,59989.0,0.09235803]
[1724854642009,0.00819,59990.0,59989.0,0.01255803]
[1724854642010,0.174884,59990.0,59989.0,0.01255803]
[1724854642460,0.00819,59990.0,59982.0,0.00333377]
[1724854642691,0.00819,59990.0,59989.0,0.595991]
[1724854642909,0.00819,59990.0,59989.0,1.327579]
[1724854643124,0.00819,59990.0,59989.0,1.313579]
[1724854643349,0.00819,59990.0,59989.0,1.32479353]
[1724854643574,0.00819,59990.0,59989.0,1.33879353]
[1724854644003,0.00819,59990.0,59989.0,1.00539953]
[1724854644435,0.00819,59990.0,59989.0,1.38943301]
[1724854644661,0.00819,59990.0,59989.0,1.40343301]
[1724854644900,0.00819,59990.0,59989.0,1.00539953]
[1724854645360,1e-08,59990.0,59989.0,1.01939953]
[1724854645578,1e-08,59990.0,59989.0,0.03921453]
[1724854645799,0.16669401,59990.0,59989.0,0.02521453]
[1724854646017,0.50008201,59990.0,59989.0,0.02521453]
[1724854646240,0.166702,59987.0,59980.0,0.081]
[1724854646470,1e-08,59990.0,59980.0,0.081]
[1724854646721,1e-08,59990.0,59981.0,0.01455759]
[1724854646939,0.166716,59982.0,59981.0,0.0112239]
[1724854647151,0.166712,59984.0,59981.0,0.0112239]
[1724854647361,0.166712,59984.0,59980.0,0.166721]
[1724854647589,0.166712,59984.0,59982.0,0.01129556]
[1724854647807,1e-08,59990.0,59989.0,0.166697]
[1724854648046,1e-08,59990.0,59989.0,0.561091]
[1724854648266,1e-08,59990.0,59989.0,0.0112934]
[1724854648689,1e-08,59990.0,59985.0,0.227707]
[1724854648690,0.16669401,59990.0,59985.0,0.227707]
[1724854648898,1e-08,59990.0,59989.0,0.0112934]
[1724854649110,1e-08,59990.0,59986.0,0.33674258]
[1724854649319,1e-08,59990.0,59989.0,0.0112934]
[1724854649531,1e-08,59990.0,59989.0,0.83681856]
[1724854649753,1e-08,59990.0,59989.0,0.85911196]
[1724854650187,1e-08,59990.0,59989.0,0.1889904]
[1724854650418,1e-08,59990.0,59989.0,0.0362934]
[1724854650663,1e-08,59990.0,59989.0,0.1919904]
[1724854650889,0.0082,59992.0,59991.0,0.166691]
[1724854651102,0.0082,59992.0,59991.0,0.50340713]
[1724854651537,0.0082,59992.0,59991.0,0.1779844]
[1724854651747,0.0082,59992.0,59991.0,0.5113674]
[1724854652223,0.0082,59992.0,59991.0,0.8587504]
[1724854653283,0.0082,59992.0,59991.0,0.0252934]
[1724854653524,0.0082,59992.0,59991.0,0.34800976]
[1724854653775,0.0082,59992.0,59991.0,0.52870076]
[1724854654019,0.0082,59992.0,59991.0,0.0392934]
[1724854654257,0.0082,59992.0,59991.0,0.5253674]
[1724854655201,0.0082,59992.0,59991.0,0.0392934]
[1724854655673,0.0082,59992.0,59991.0,0.3726764]
[1724854655925,0.0082,59992.0,59991.0,1.2857334]
[1724854656689,0.0082,59992.0,59991.0,1.2717334]
[1724854656926,0.0082,59992.0,59991.0,1.2857334]
[1724854658164,0.0082,59992.0,59991.0,1.33702196]
[1724854658392,0.0082,59992.0,59991.0,1.2857334]
[1724854658632,0.0082,59992.0,59991.0,1.33702196]
[1724854659143,0.0082,59992.0,59991.0,1.32502195]
[1724854659591,0.0082,59992.0,59991.0,1.33902195]
[1724854659844,0.0082,59992.0,59991.0,1.32502195]
[1724854660072,0.0082,59992.0,59991.0,1.30902196]
[1724854660296,0.7904,60056.0,59991.0,1.30902196]
[1724854660297,0.412168,60012.0,59999.0,0.333338]
[1724854660520,0.166637,60011.0,60000.0,0.00333247]
[1724854660763,0.166637,60011.0,60006.0,0.499944]
[1724854661036,0.0789,60012.0,60008.0,0.166643]
[1724854661266,0.0789,60012.0,60003.0,0.333315]
[1724854661267,0.412171,60012.0,60009.0,0.00927073]
[1724854661504,0.166639,60010.0,60007.0,0.00333252]
[1724854661734,0.232431,60013.0,60010.0,0.00927073]
[1724854661967,0.16664,60010.0,60006.0,0.166648]
[1724854662200,0.499899,60012.0,60011.0,0.00927073]
[1724854662409,0.166648,60007.0,60001.0,0.333324]
[1724854662636,0.166651,60006.0,60002.0,0.166659]
[1724854662863,0.333289,60008.0,60003.0,0.166657]
[1724854663108,0.0658,60013.0,59999.0,0.175668]
[1724854663326,0.0658,60013.0,60008.0,0.006]
[1724854663543,0.0658,60013.0,59998.0,0.333342]
[1724854663544,0.166657,60004.0,59998.0,0.333342]
[1724854663783,0.166652,60006.0,59999.0,0.333334]
[1724854664011,0.333281,60010.0,60001.0,0.011]
[1724854664222,0.410516,60003.0,59997.0,0.166674]
[1724854664443,0.0614,60002.0,59999.0,0.004]
[1724854664669,0.166666,60000.0,59999.0,0.004]
[1724854664876,0.11142134,60002.0,59979.0,0.333444]
[1724854664877,0.500074,59991.0,59979.0,0.333444]
[1724854665090,0.166707,59986.0,59980.0,0.4782]
[1724854665337,0.333401,59988.0,59978.0,0.0823]
[1724854665555,0.166695,59990.0,59979.0,0.00333382]
[1724854665770,0.08753335,60002.0,59980.0,0.25076077]
[1724854665993,0.02613335,60002.0,59999.0,0.166669]
[1724854666245,0.02613335,60002.0,60000.0,0.0033329]
[1724854666660,0.166668,60000.0,59996.0,0.166676]
[1724854666880,0.166668,60000.0,59994.0,0.24898]
[1724854667134,0.0772,60008.0,59988.0,0.333398]
[1724854667135,0.0772,60008.0,59990.0,0.4782]
[1724854667366,0.575474,59991.0,59990.0,0.4782]
[1724854667623,0.333342,59999.0,59990.0,0.4782]
[1724854667841,0.1,60008.0,59991.0,0.08]
[1724854667842,0.1401,60006.0,59991.0,0.08]
[1724854668055,0.333324,60002.0,59995.0,0.166679]
[1724854668284,0.166689,59992.0,59990.0,0.4782]
[1724854668490,0.1401,60006.0,59992.0,0.166688]
[1724854668491,0.166676,59997.0,59992.0,0.166688]
[1724854668699,0.166673,59998.0,59990.0,0.811588]
[1724854668904,0.333346,59998.0,59994.0,0.014]
[1724854669108,0.166677,59996.0,59994.0,0.014]
[1724854669530,0.166677,59996.0,59992.0,0.166687]
[1724854669737,0.166677,59996.0,59992.0,0.18402041]
[1724854669952,0.166667,60000.0,59996.0,0.166675]
[1724854670163,0.16667,59999.0,59997.0,0.00333299]
[1724854670369,0.333323,60002.0,59997.0,0.00333299]
[1724854670592,0.026133,60004.0,60001.0,0.166662]
[1724854670809,0.026133,60004.0,60000.0,0.333332]
[1724854670810,0.026133,60004.0,60003.0,0.166658]
[1724854671255,0.026133,60004.0,60003.0,0.83662274]
[1724854671476,0.166626,60015.0,60010.0,0.166637]
[1724854671683,0.408835,60018.0,60011.0,0.00333229]
[1724854671684,0.166628,60014.0,60011.0,0.00333229]
[1724854671925,0.408835,60018.0,60010.0,0.16997039]
[1724854671926,0.02612969,60011.0,60010.0,0.16997039]
[1724854672140,0.02612969,60011.0,60010.0,0.166638]
[1724854672354,0.02612969,60011.0,60010.0,0.499915]
[1724854672598,0.166624,60016.0,60011.0,0.166634]
[1724854672814,0.166625,60015.0,60011.0,0.166634]
[1724854673037,0.166629,60014.0,60009.0,0.16664]
[1724854673264,0.341433,60017.0,60012.0,0.00769729]
[1724854673503,0.16663,60013.0,60012.0,0.00769729]
[1724854673725,0.166627,60014.0,60013.0,0.00769729]